bitfinex/quotes_ETHUSD_20251010
["timestamp","ask_amount","ask_price","bid_price","bid_amount"]
[1760137944835,0.4402,3819.3,3817.0,6.4671]
[1760137945207,0.2158,3819.8,3817.0,6.4671]
[1760137945455,0.99999999,3819.5,3817.0,6.4671]
[1760137945933,0.4402,3819.7,3817.0,6.45921548]
[1760137946136,0.4402,3819.7,3817.0,7.68921548]
[1760137946335,0.2158,3819.8,3817.0,7.68921548]
[1760137946638,0.99999999,3818.6,3817.0,7.68921548]
[1760137946825,0.2158,3819.8,3817.0,7.68921548]
[1760137946826,0.99999999,3818.2,3817.0,7.68921548]
[1760137947026,0.4402,3818.5,3817.0,7.68921548]
[1760137947537,0.99999999,3818.2,3817.0,8.91921548]
[1760137947712,0.99999999,3817.9,3817.0,8.91921548]
[1760137947909,0.99999999,3818.5,3817.0,8.91921548]
[1760137948107,0.4402,3818.8,3817.0,8.91921548]
[1760137948515,0.4402,3819.6,3817.0,8.91921548]
[1760137948950,0.99999999,3820.8,3817.0,10.14921548]
[1760137949150,0.4402,3820.3,3817.0,10.14921548]
[1760137949514,0.99999999,3820.0,3817.0,10.14921548]
[1760137949710,0.4402,3820.3,3817.0,10.14921548]
[1760137949912,0.656,3821.3,3817.0,10.14921548]
[1760137950260,0.99999999,3822.0,3817.0,11.37921548]
[1760137950412,0.2158,3821.9,3817.0,11.37921548]
[1760137950617,0.4402,3821.8,3817.0,11.37921548]
[1760137950841,0.4402,3822.8,3817.0,11.37921548]
[1760137951235,0.156,3823.6,3817.0,11.37921548]
[1760137951545,0.99999999,3823.2,3817.0,11.37921548]
[1760137951752,0.99999999,3823.9,3817.0,12.60921548]
[1760137951933,0.4412,3823.5,3817.0,12.60921548]
[1760137952135,0.001,3823.5,3817.0,12.60921548]
[1760137953268,0.001,3823.5,3817.0,13.83921548]
[1760137953943,0.001,3823.5,3817.6,106.235]
[1760137954142,0.001,3823.5,3817.6,111.4818]
[1760137954554,0.001,3823.5,3817.6,112.7118]
[1760137954927,0.001,3823.5,3817.6,6.4768]
[1760137955845,0.001,3823.5,3817.6,7.7068]
[1760137957128,0.001,3823.5,3817.6,7.7088]
[1760137957325,0.001,3823.5,3817.6,8.9388]
[1760137957540,0.13801789,3823.4,3817.6,8.9388]
[1760137957836,0.13801789,3823.4,3820.5,0.1304]
[1760137958157,0.13801789,3823.4,3820.5,5.2428]
[1760137958358,0.1304,3821.6,3820.9,0.1304]
[1760137958577,0.13801789,3823.4,3820.9,5.2423]
[1760137958757,0.13801789,3823.4,3820.9,6.4723]
[1760137959578,0.001,3823.4,3820.9,6.4723]
[1760137960284,0.001,3823.4,3820.9,7.7023]
[1760137961850,0.001,3823.4,3820.9,8.9323]
[1760137963264,0.001,3823.4,3820.9,10.1623]
[1760137963484,0.001,3823.4,3821.0,2.732]
[1760137963684,0.001,3823.4,3821.1,0.02617047]
[1760137963891,0.001,3823.4,3821.1,5.26817047]
[1760137964210,0.001,3823.4,3821.1,5.242]
[1760137964580,0.001,3823.4,3821.1,6.472]
[1760137965269,0.001,3823.4,3821.2,2.732]
[1760137965625,0.001,3823.4,3821.2,5.2418]
[1760137965908,0.001,3823.4,3821.3,0.02388208]
[1760137966072,0.001,3823.4,3821.4,2.732]
[1760137966278,0.001,3823.4,3821.4,7.9736]
[1760137967082,0.001,3823.4,3821.4,5.2416]
[1760137967483,0.001,3823.4,3821.4,6.4716]
[1760137968920,0.001,3823.4,3823.3,0.1304]
[1760137969129,0.001,3823.4,3823.3,5.239]
[1760137970107,0.001,3823.4,3823.3,6.469]
[1760137971717,0.001,3823.4,3823.3,7.699]
[1760137972991,0.001,3823.4,3823.3,8.929]
[1760137974403,0.001,3823.4,3823.3,10.159]
[1760137975909,0.001,3823.4,3823.3,11.389]
[1760137977318,0.001,3830.4,3823.3,15.351]
[1760137977534,0.13676996,3829.9,3823.3,15.351]
[1760137977703,0.001,3830.4,3823.3,15.351]
[1760137977893,0.001,3830.4,3824.6,2.732]
[1760137978092,0.001,3830.4,3824.6,7.9692]
[1760137978493,0.001,3830.4,3824.6,5.2372]
[1760137978695,0.001,3830.4,3824.6,6.4672]
[1760137978896,0.001,3830.4,3826.1,106.235]
[1760137979127,0.001,3830.4,3826.1,111.4701]
[1760137979347,0.1304,3827.9,3826.1,111.4701]
[1760137979630,0.001,3830.4,3826.1,111.4701]
[1760137979830,0.001,3830.4,3826.5,93.2289]
[1760137980121,0.001,3830.4,3826.5,98.4635]
[1760137981027,0.001,3830.4,3828.1,70.3749]
[1760137981233,0.001,3830.4,3828.1,76.8373]
[1760137982120,0.001,3830.4,3828.3,70.505]
[1760137982425,0.001,3830.4,3828.4,0.00561392]
[1760137982616,0.001,3830.4,3828.4,5.23761392]
[1760137982822,0.001,3830.4,3828.4,6.462]
[1760137984221,0.001,3830.4,3828.4,7.692]
[1760137985625,0.001,3830.4,3828.4,8.922]
[1760137986923,0.001,3830.4,3828.4,10.152]
[1760137988322,0.001,3830.4,3828.4,11.382]
[1760137988723,0.99999999,3830.2,3828.4,11.382]
[1760137988958,0.99999999,3829.5,3828.4,11.382]
[1760137989137,0.99999999,3828.9,3828.4,11.382]
[1760137989359,0.99999999,3828.5,3828.4,11.382]
[1760137989559,0.2318,3829.8,3828.4,12.612]
[1760137989779,0.4307,3829.3,3828.4,12.612]
[1760137989985,0.99999999,3828.5,3828.4,12.612]
[1760137990987,0.99999999,3828.5,3828.4,13.842]
[1760137991362,0.2318,3829.8,3828.4,13.842]
[1760137991363,0.99999999,3828.8,3828.4,8.61]
[1760137991680,0.99999999,3830.2,3828.4,8.61]
[1760137991889,0.001,3830.4,3828.4,8.61]
[1760137992085,0.99999999,3829.3,3828.4,8.61]
[1760137992389,0.99999999,3830.0,3828.4,9.84]
[1760137992694,0.99999999,3828.5,3828.4,9.84]
[1760137992896,0.99999999,3829.1,3828.4,9.84]
[1760137993067,0.001,3830.4,3828.4,9.84]
[1760137993378,0.001,3830.4,3828.4,15.0627]
[1760137993579,0.001,3830.4,3828.4,16.2927]
[1760137993880,0.001,3830.4,3828.5,0.00527685]
[1760137994085,0.4307,3830.3,3828.5,5.224]
[1760137994390,0.99999999,3828.6,3828.5,5.224]
[1760137994555,0.99999999,3828.5,3828.4,10.697]
[1760137994755,1.43069999,3828.5,3828.4,10.697]
[1760137994956,0.99999999,3826.8,3826.5,0.003]
[1760137995155,0.99999999,3827.2,3826.5,0.003]
[1760137995361,0.99999999,3827.6,3826.6,0.3843]
[1760137995579,0.99999999,3827.6,3826.5,0.003]
[1760137995779,0.99999999,3827.0,3826.5,0.003]
[1760137995956,0.4307,3828.5,3826.5,0.003]
[1760137995957,0.99999999,3826.6,3826.5,0.003]
[1760137996158,0.99999999,3827.2,3826.5,0.003]
[1760137996382,0.99999999,3826.6,3826.5,1.233]
[1760137996684,0.99999999,3827.2,3826.5,1.233]
[1760137996886,0.99999999,3827.2,3826.5,6.4592]
[1760137997182,0.99999999,3826.6,3826.5,6.4592]
[1760137997686,0.99999999,3826.6,3826.5,7.6892]
[1760137998371,0.99999999,3827.5,3826.5,7.6892]
[1760137998763,0.99999999,3826.7,3826.5,7.6892]
[1760137999179,0.99999999,3827.5,3826.5,8.9192]
[1760137999493,0.99999999,3829.1,3826.6,0.3843]
[1760137999663,0.99999999,3828.6,3826.6,5.6109]
[1760137999873,0.99999999,3828.0,3826.6,5.6109]
[1760138000087,0.99999999,3826.8,3826.6,5.2266]
[1760138000288,0.99999999,3827.5,3826.6,5.2266]
[1760138000625,0.99999999,3827.2,3826.6,6.8409]
[1760138000796,0.99999999,3827.4,3826.6,6.4566]
[1760138000955,0.99999999,3829.2,3826.7,0.3843]
[1760138001156,0.99999999,3828.4,3826.7,5.6107]
[1760138001460,0.99999999,3829.1,3826.8,0.3843]
[1760138001657,0.99999999,3829.1,3826.8,5.6106]
[1760138001859,0.001,3830.8,3826.9,0.3843]
[1760138002065,0.4307,3830.7,3826.9,5.6105]
[1760138002280,0.99999999,3829.9,3826.9,5.6105]
[1760138002483,0.99999999,3829.0,3827.0,0.3843]
[1760138002765,0.99999999,3829.6,3827.0,5.6103]
[1760138003089,0.99999999,3829.6,3827.1,0.3843]
[1760138003291,0.99999999,3829.6,3820.1,1.37714925]
[1760138003474,0.99999999,3829.4,3820.8,1.35340545]
[1760138003796,0.99999999,3829.5,3824.6,6.456]
[1760138004196,0.99999999,3829.0,3824.6,6.456]
[1760138004609,0.99999999,3829.6,3824.6,7.686]
[1760138004812,0.4307,3830.2,3824.6,7.686]
[1760138004813,0.99999999,3829.7,3824.6,7.686]
[1760138005008,0.4307,3830.2,3824.6,7.686]
[1760138005311,0.001,3830.8,3824.6,7.686]
[1760138005512,0.4624,3830.8,3824.6,7.686]
[1760138005705,0.99999999,3830.6,3824.6,7.686]
[1760138005900,0.4614,3830.3,3824.6,8.916]
[1760138006295,0.99999999,3829.4,3824.6,8.916]
[1760138006684,0.4614,3830.3,3824.6,8.916]
[1760138006685,0.99999999,3828.8,3824.6,8.916]
[1760138007199,0.99999999,3829.7,3824.6,10.146]
[1760138007816,0.99999999,3830.2,3824.6,10.146]
[1760138007983,0.99999999,3830.6,3824.6,10.146]
[1760138008691,0.99999999,3830.6,3824.6,11.376]
[1760138008982,0.99999999,3830.1,3824.6,11.376]
[1760138009184,0.001,3830.8,3824.6,11.376]
[1760138009185,0.99999999,3829.7,3824.6,11.376]
[1760138009413,0.99999999,3828.9,3824.6,11.376]
[1760138009711,0.001,3830.4,3824.6,11.376]
[1760138009913,0.001,3830.4,3824.6,12.606]
[1760138010083,0.1304,3827.1,3826.4,0.1304]
[1760138010280,2.61335424,3826.5,3826.4,5.3573]
[1760138010487,2.61294452,3827.1,3827.0,0.1304]
[1760138010680,0.1304,3828.1,3827.0,5.226]
[1760138010882,2.61285959,3827.3,3827.0,5.226]
[1760138011085,2.61076155,3830.3,3827.0,5.226]
[1760138011321,0.99999999,3832.1,3827.0,6.456]
[1760138011822,0.99999999,3832.7,3827.0,6.456]
[1760138012043,0.4614,3833.4,3827.1,0.02612944]
[1760138012244,0.99999999,3832.0,3827.1,5.25192944]
[1760138012557,2.61049521,3830.7,3827.1,5.2258]
[1760138012764,2.61049521,3830.7,3827.2,0.00571877]
[1760138013044,2.61255261,3827.7,3827.2,5.23151877]
[1760138013211,2.61096605,3830.0,3827.2,5.2258]
[1760138014131,0.99999999,3831.1,3827.2,5.2258]
[1760138014308,0.4624,3831.2,3827.2,6.4558]
[1760138014510,0.99999999,3829.0,3823.8,0.002]
[1760138014753,0.99999999,3828.6,3823.8,0.002]
[1760138014922,2.61321765,3826.7,3826.6,0.002]
[1760138015116,2.61513114,3823.9,3823.8,0.002]
[1760138015648,2.61513114,3823.9,3823.8,1.232]
[1760138015825,2.61513114,3823.9,3823.8,6.4623]
[1760138017218,2.61513114,3823.9,3823.8,7.6923]
[1760138018128,0.4614,3829.4,3823.8,7.6923]
[1760138018323,0.99999999,3827.4,3823.8,7.6923]
[1760138018516,0.99999999,3827.4,3823.8,8.9223]
[1760138018717,0.99999999,3827.7,3823.8,8.9223]
[1760138018913,2.61508071,3824.0,3823.8,8.9223]
[1760138019228,2.61494493,3824.2,3823.8,8.9223]
[1760138019624,2.61483718,3824.4,3823.8,8.9223]
[1760138019829,0.99999999,3828.0,3823.8,8.9223]
[1760138020029,0.99999999,3827.6,3823.8,10.1523]
[1760138020246,0.99999999,3826.9,3823.8,10.1523]
[1760138020447,1.32755968,3831.3,3823.8,10.1523]
[1760138020689,0.99999999,3828.0,3823.8,10.1523]
[1760138020835,0.1304,3824.5,3823.8,10.1523]
[1760138021269,0.1304,3824.0,3823.8,10.1523]
[1760138021440,0.99999999,3827.0,3823.8,11.3823]
[1760138021765,0.13682163,3828.0,3823.8,11.3823]
[1760138021766,0.99999999,3827.6,3823.8,11.3823]
[1760138021919,0.99999999,3828.1,3823.8,11.3823]
[1760138022124,0.99999999,3827.5,3823.8,11.3823]
[1760138022563,0.99999999,3828.5,3823.9,0.00639492]
[1760138022760,0.99999999,3828.1,3823.9,5.23669492]
[1760138022946,0.99999999,3828.1,3823.9,5.2303]
[1760138023248,0.99999999,3827.7,3823.9,5.2303]
[1760138023448,0.99999999,3827.9,3823.9,5.2303]
[1760138023623,0.99999999,3827.4,3823.9,5.2303]
[1760138024023,2.61501317,3824.1,3823.9,5.2303]
[1760138024355,2.61567837,3823.1,3823.0,1e-08]
[1760138024652,2.61567837,3823.1,3823.0,5.23140001]
[1760138025629,0.99999999,3827.1,3823.0,6.46140001]
[1760138025827,0.99999999,3827.3,3823.0,6.46140001]
[1760138026360,1.82972466,3825.8,3823.0,6.46140001]
[1760138026533,0.4614,3829.9,3823.0,6.46140001]
[1760138026865,0.99999999,3828.1,3823.0,6.46140001]
[1760138027112,0.99999999,3829.0,3823.0,7.69140001]
[1760138027284,0.99999999,3827.4,3823.0,7.69140001]
[1760138027484,1.92,3826.2,3823.0,7.69140001]
[1760138027704,1.83093878,3823.2,3823.0,7.69140001]
[1760138027999,1.92,3825.7,3823.0,7.69140001]
[1760138028207,1.83093857,3823.2,3823.0,7.69140001]
[1760138028391,1.83093857,3823.2,3823.0,8.92140001]
[1760138028593,0.99999999,3827.0,3823.0,8.92140001]
[1760138028900,0.99999999,3826.8,3823.0,8.92140001]
[1760138029405,1.82578885,3823.5,3823.0,8.92140001]
[1760138029579,1.82901337,3827.2,3823.1,0.005]
[1760138029768,0.4575,3831.0,3823.1,7.9684]
[1760138029967,0.93999999,3830.6,3823.2,0.06]
[1760138030315,2.76775826,3829.9,3823.4,0.06]
[1760138030473,1.82775827,3829.9,3823.5,2.732]
[1760138030701,0.93999999,3830.3,3823.6,0.01121309]
[1760138030905,0.13669947,3831.1,3825.4,2.732]
[1760138031229,0.93999999,3830.3,3825.5,0.01120752]
[1760138031432,0.93999999,3830.3,3825.5,7.97130752]
[1760138031619,1.82882139,3827.7,3825.5,7.9601]
[1760138031820,1.82858337,3828.1,3828.0,0.1304]
[1760138032130,1.82849902,3828.3,3826.1,53.9589]
[1760138032330,0.1304,3828.3,3827.3,0.1304]
[1760138032632,0.005,3828.9,3827.3,5.2249]
[1760138034003,0.005,3828.9,3827.3,6.4549]
[1760138034840,1.83320321,3828.9,3827.3,6.4549]
[1760138035027,0.005,3828.9,3827.3,6.4549]
[1760138035226,1.82864534,3828.0,3827.3,6.4549]
[1760138035427,0.005,3828.9,3827.3,7.6849]
[1760138035745,1.8289178,3827.4,3827.3,7.6849]
[1760138035942,0.005,3828.9,3827.3,7.6849]
[1760138036140,1.56758663,3827.6,3827.3,7.6849]
[1760138036311,0.005,3828.9,3827.3,7.6849]
[1760138036941,1.5673328,3828.2,3827.3,8.9149]
[1760138037109,1.56719341,3828.5,3827.3,8.9149]
[1760138037310,1.56761051,3827.5,3827.3,8.9149]
[1760138037510,1.5675808,3827.6,3827.3,8.9149]
[1760138037813,1.56764376,3827.5,3827.3,8.9149]
[1760138038429,1.56764376,3827.5,3827.3,10.1449]
[1760138038636,1.46897333,3827.5,3827.3,10.1449]
[1760138038923,0.005,3829.9,3827.3,10.1449]
[1760138039336,1.56761317,3827.5,3827.3,10.1449]
[1760138039736,1.56761317,3827.5,3827.3,11.3749]
[1760138040625,0.005,3832.9,3827.3,11.3749]
[1760138040826,0.93999999,3831.4,3827.3,11.3749]
[1760138041040,1.567611,3827.5,3827.3,12.6049]
[1760138041241,1.56797156,3826.6,3826.5,40.67410221]
[1760138041433,1.56813548,3826.2,3826.1,1.235]
[1760138041753,0.001,3830.7,3826.1,6.4622]
[1760138042254,0.93999999,3830.1,3826.1,6.4622]
[1760138042456,0.1304,3827.6,3826.1,7.6922]
[1760138042655,0.001,3830.7,3826.1,7.6922]
[1760138043240,0.001,3830.7,3826.1,10.4242]
[1760138043850,0.94099999,3830.3,3826.1,7.6922]
[1760138044168,0.001,3830.3,3826.1,8.9222]
[1760138044542,0.94099999,3830.3,3826.1,8.9222]
[1760138044859,0.93999999,3828.7,3826.1,8.9222]
[1760138045029,0.001,3830.3,3826.1,8.9222]
[1760138045358,0.001,3830.3,3826.2,2.732]
[1760138045674,0.001,3830.3,3826.2,7.9591]
[1760138045880,0.001,3830.3,3827.1,2.732]
[1760138046200,0.001,3830.3,3827.2,0.02612876]
[1760138046400,0.001,3830.3,3827.3,2.732]
[1760138046690,0.001,3830.3,3827.3,5.2256]
[1760138046859,0.001,3830.3,3827.3,6.4556]
[1760138047467,0.001,3830.3,3827.4,2.732]
[1760138047668,0.001,3830.3,3827.4,7.9575]
[1760138047981,0.001,3830.3,3827.7,2.732]
[1760138048155,0.001,3830.3,3827.7,7.9571]
[1760138048963,0.001,3830.3,3827.8,48.4079]
[1760138049162,0.001,3830.3,3827.8,53.6328]
[1760138049688,0.001,3830.3,3827.9,0.06]
[1760138049857,0.001,3830.8,3829.9,2.732]
[1760138050052,0.001,3830.8,3829.9,7.9541]
[1760138050887,0.001,3830.8,3829.9,9.1841]
[1760138051766,0.005,3832.9,3829.9,9.2441]
[1760138052074,0.005,3832.9,3829.9,9.1841]
[1760138052075,0.001,3830.7,3829.9,9.1841]
[1760138052252,0.001,3830.7,3829.9,10.4141]
[1760138052856,0.001,3830.7,3830.6,0.1304]
[1760138053057,0.001,3830.7,3830.6,8.0835]
[1760138053254,0.001,3830.7,3830.6,7.9531]
[1760138053577,0.001,3830.7,3830.6,9.1831]
[1760138054299,0.005,3832.9,3830.6,9.1831]
[1760138054457,0.005,3832.9,3831.8,0.06]
[1760138054788,0.005,3832.9,3832.8,70.539]
[1760138054993,0.005,3832.9,3832.8,78.4891]
[1760138055290,0.005,3832.9,3832.8,75.7571]
[1760138056088,0.005,3832.9,3832.8,35.632]
[1760138056286,0.005,3832.9,3832.8,36.862]
[1760138056870,0.005,3832.9,3832.8,6.4481]
[1760138057653,0.005,3832.9,3832.8,7.6781]
[1760138058265,0.94499999,3832.9,3832.8,7.6781]
[1760138058790,0.40473872,3832.9,3832.8,7.6781]
[1760138058987,1.34473871,3832.9,3832.8,8.9081]
[1760138059503,1.34473871,3832.9,3832.8,8.70412203]
[1760138059790,1.34473871,3832.9,3832.8,3.69]
[1760138060466,1.34473871,3832.9,3832.8,4.92]
[1760138060662,0.94499999,3832.9,3832.8,4.92]
[1760138060893,0.005,3832.9,3832.8,10.138]
[1760138061421,0.005,3833.9,3832.8,10.138]
[1760138061835,0.005,3833.9,3832.8,11.368]
[1760138062038,0.005,3833.9,3832.8,81.907]
[1760138063024,0.005,3833.9,3833.6,70.539]
[1760138063232,0.005,3833.9,3833.8,0.1304]
[1760138063525,0.005,3833.9,3833.8,5.3472]
[1760138064232,0.005,3833.9,3833.8,5.2168]
[1760138064733,0.005,3833.9,3833.8,6.12610926]
[1760138064892,0.005,3833.9,3833.8,6.04593657]
[1760138065938,0.005,3833.9,3833.8,7.27593657]
[1760138067545,0.005,3833.9,3833.8,8.50593657]
[1760138068849,0.005,3833.9,3833.8,9.73593657]
[1760138069236,0.006,3833.9,3833.8,9.73593657]
[1760138070127,0.006,3833.9,3833.8,10.96593657]
[1760138071251,0.002,3834.9,3833.8,10.96593657]
[1760138071624,0.002,3834.9,3833.8,12.19593657]
[1760138072920,0.002,3834.9,3833.8,13.42593657]
[1760138074236,0.002,3834.9,3834.5,0.1296]
[1760138074554,0.002,3834.9,3834.5,5.7463]
[1760138075053,0.002,3834.9,3834.5,5.6167]
[1760138075853,0.002,3834.9,3834.5,6.8467]
[1760138077241,0.002,3834.9,3834.5,8.0767]
[1760138078666,0.002,3834.9,3834.5,9.3067]
[1760138080165,0.002,3834.9,3834.5,10.5367]
[1760138081661,0.002,3834.9,3834.5,11.7667]
[1760138082975,0.93999999,3834.6,3834.5,12.9967]
[1760138083351,0.94199999,3834.9,3832.8,7.382]
[1760138083670,0.93999999,3834.8,3832.8,12.5987]
[1760138084277,0.93999999,3834.6,3832.8,13.8287]
[1760138084478,0.94199999,3834.9,3832.8,13.8287]
[1760138084651,0.93999999,3834.2,3832.8,13.8287]
[1760138084851,0.1304,3834.0,3833.3,0.1304]
[1760138085101,0.93999999,3834.8,3833.3,5.2174]
[1760138085460,0.93999999,3833.4,3832.8,1e-08]
[1760138085676,0.93999999,3833.4,3832.8,5.21770001]
[1760138085851,0.93999999,3834.0,3832.8,1e-08]
[1760138086054,0.002,3834.9,3832.8,1e-08]
[1760138086055,3.54868327,3833.4,3832.8,1e-08]
[1760138086255,2.60967144,3831.9,3831.8,1e-08]
[1760138086494,0.002,3834.9,3831.8,5.21940001]
[1760138086800,2.609613,3832.0,3831.8,5.21940001]
[1760138087004,2.60955698,3832.1,3831.1,0.005]
[1760138087005,2.61014825,3831.2,3831.1,0.005]
[1760138087297,2.61010841,3831.3,3831.1,5.2254]
[1760138088256,2.61010841,3831.3,3831.1,6.4554]
[1760138088699,2.61048894,3830.7,3828.7,30.746]
[1760138088880,2.61048894,3830.7,3828.0,69.5499]
[1760138089065,2.61048894,3830.7,3830.6,6.476]
[1760138089659,2.61048894,3830.7,3830.6,7.706]
[1760138090002,2.60913209,3832.7,3830.6,9.136]
[1760138090304,2.60958948,3832.1,3830.6,9.136]
[1760138090598,2.60776265,3834.8,3830.6,9.136]
[1760138090599,0.93999999,3834.0,3830.6,9.136]
[1760138090761,2.60975036,3831.8,3830.6,7.706]
[1760138090961,2.60844614,3833.7,3830.7,2.732]
[1760138091156,0.005,3833.9,3830.7,5.221]
[1760138091355,2.60932743,3832.5,3824.5,2.61465616]
[1760138091556,2.60878639,3833.2,3828.0,0.06]
[1760138091793,2.60878639,3833.2,3823.3,1.82782978]
[1760138091794,0.93999999,3832.7,3829.2,70.539]
[1760138091961,2.60903659,3832.9,3829.3,2.732]
[1760138092163,0.13640688,3837.4,3831.8,0.99999999]
[1760138092479,0.13640688,3837.4,3831.9,2.732]
[1760138092480,2.60644163,3836.7,3831.9,2.732]
[1760138092656,2.60621498,3837.0,3832.1,2.732]
[1760138092856,2.60772374,3834.8,3832.1,7.9511]
[1760138093161,2.61195219,3835.9,3832.1,7.9511]
[1760138093363,0.005,3835.9,3832.1,7.9511]
[1760138093562,2.60764196,3834.9,3832.1,7.9511]
[1760138093971,0.005,3835.9,3833.4,44.995]
[1760138094170,2.60838526,3835.3,3833.5,1.425]
[1760138094376,2.60838526,3835.3,3833.5,6.6272]
[1760138094377,0.001,3835.3,3833.5,6.6272]
[1760138095077,0.001,3835.3,3833.5,5.2172]
[1760138095390,2.60849539,3833.7,3833.5,5.2172]
[1760138095559,2.60849539,3833.7,3833.5,6.4472]
[1760138096091,0.001,3835.3,3833.5,6.4472]
[1760138096292,2.60771511,3834.8,3833.5,6.4472]
[1760138096493,0.001,3835.3,3833.5,6.4472]
[1760138096989,1.92,3835.1,3833.5,7.6772]
[1760138097189,1.92,3834.5,3833.5,7.6772]
[1760138097392,1.92,3835.1,3833.5,7.6772]
[1760138097568,1.92,3834.3,3833.5,7.6772]
[1760138097767,2.60806174,3834.3,3833.5,7.6772]
[1760138097968,0.001,3835.3,3833.5,7.6772]
[1760138098366,2.60818444,3834.1,3833.5,8.9072]
[1760138098564,2.60760911,3835.0,3833.5,8.9072]
[1760138098767,2.60829995,3834.0,3833.5,8.9072]
[1760138099194,2.60839512,3833.8,3833.5,8.9072]
[1760138099392,2.60846197,3833.7,3833.5,8.9072]
[1760138099794,2.60846197,3833.7,3833.5,10.1372]
[1760138100509,2.60764862,3834.9,3833.5,10.1372]
[1760138100665,0.001,3835.3,3833.5,10.1372]
[1760138100867,2.60848697,3833.7,3833.5,10.1372]
[1760138101298,2.60848697,3833.7,3833.5,11.3672]
[1760138101797,0.001,3835.3,3833.5,11.3672]
[1760138101798,2.60780851,3834.7,3833.5,11.3672]
[1760138101988,0.001,3835.3,3833.5,11.3672]
[1760138102190,2.60791355,3834.5,3833.5,11.3672]
[1760138102565,0.001,3835.3,3833.5,12.5972]
[1760138102766,2.60793477,3834.5,3833.5,12.5972]
[1760138102961,2.6080643,3834.3,3833.5,12.5972]
[1760138103199,2.60816643,3834.2,3833.5,12.5972]
[1760138103465,0.001,3835.3,3833.5,12.5972]
[1760138103692,2.60851192,3833.7,3833.5,12.5972]
[1760138103894,2.60835786,3833.9,3833.5,13.8272]
[1760138104061,2.60749393,3835.1,3833.5,13.8272]
[1760138104271,0.001,3835.3,3833.5,13.8272]
[1760138104470,0.001,3835.3,3833.6,2.732]
[1760138104666,0.001,3835.3,3833.6,7.949]
[1760138104869,2.60770591,3834.8,3833.6,7.949]
[1760138105063,0.001,3835.3,3835.2,0.1296]
[1760138105313,2.60763818,3834.9,3834.7,0.1296]
[1760138105478,2.6077168,3834.8,3833.6,3.962]
[1760138105670,0.001,3835.3,3834.8,0.1296]
[1760138105887,2.607583,3835.0,3834.8,5.2154]
[1760138106815,2.607583,3835.0,3834.8,6.4454]
[1760138107187,0.001,3835.3,3834.8,6.4454]
[1760138107404,2.60756192,3835.0,3834.8,2.55465266]
[1760138108088,2.60759546,3835.0,3834.8,1.23]
[1760138108294,2.60762992,3834.9,3834.8,1.23]
[1760138108514,2.60844614,3833.7,3833.6,1.23]
[1760138108764,2.60912672,3832.7,3832.6,45.0]
[1760138109053,2.60943396,3832.3,3831.0,45.0]
[1760138109227,2.60806008,3834.3,3827.1,0.005]
[1760138109228,2.61014825,3831.2,3827.1,0.005]
[1760138109427,0.463,3835.2,3827.1,0.005]
[1760138109428,2.61103423,3829.9,3827.1,0.005]
[1760138109688,2.61103423,3829.9,3829.8,5.2241]
[1760138109958,2.61144334,3829.3,3827.2,32.4209]
[1760138110158,2.61144334,3829.3,3829.1,1e-08]
[1760138110458,2.61215637,3828.3,3827.2,32.4209]
[1760138110610,2.61087888,3830.2,3827.2,32.4209]
[1760138110811,0.463,3833.3,3828.1,5.2281]
[1760138111016,2.60742594,3835.2,3828.2,2.732]
[1760138111248,2.61018481,3831.2,3828.2,7.9564]
[1760138111559,0.005,3834.9,3828.2,7.9564]
[1760138111717,2.60790194,3834.5,3828.2,7.9564]
[1760138111916,0.005,3832.9,3828.2,7.9564]
[1760138112116,2.60978248,3831.8,3828.4,2.732]
[1760138112333,0.005,3832.9,3828.6,2.732]
[1760138112565,0.005,3832.9,3828.6,7.9558]
[1760138112566,2.60998217,3831.5,3828.6,7.9558]
[1760138112745,2.61005643,3831.4,3828.6,7.9558]
[1760138112931,0.005,3831.9,3828.6,7.9558]
[1760138113442,2.60973954,3831.8,3828.6,7.9558]
[1760138113640,0.005,3831.9,3828.6,6.4538]
[1760138113955,2.61148566,3829.3,3828.6,6.4538]
[1760138114187,2.61470562,3831.9,3828.6,6.4538]
[1760138114323,0.005,3831.9,3828.6,6.4538]
[1760138114521,2.61183285,3828.8,3828.6,6.4538]
[1760138115055,2.61212548,3828.3,3828.2,1.23]
[1760138115230,2.61212548,3828.3,3828.2,6.4543]
[1760138115557,2.61212548,3828.3,3823.6,2.732]
[1760138115725,2.61287625,3827.2,3823.6,2.732]
[1760138116052,0.2337,3832.7,3823.6,2.732]
[1760138116229,0.463,3832.1,3827.1,6.4608]
[1760138117225,2.61286754,3827.3,3827.1,6.4608]
[1760138117443,2.6128385,3827.3,3827.1,6.4608]
[1760138117644,2.6128385,3827.3,3827.1,7.6908]
[1760138117846,1.30936934,3833.1,3827.1,7.6908]
[1760138118026,2.61287625,3827.2,3827.1,7.6908]
[1760138118435,2.61287625,3827.2,3827.1,7.7908]
[1760138119037,2.61287625,3827.2,3827.1,9.0208]
[1760138119233,2.61267521,3827.5,3827.1,9.0208]
[1760138119234,2.61273545,3827.5,3827.1,9.0208]
[1760138119449,1.84319742,3832.0,3827.1,9.0208]
[1760138119661,2.61283282,3827.3,3827.1,9.0208]
[1760138120156,2.61239524,3828.0,3827.1,9.0208]
[1760138120328,2.61082972,3830.2,3827.1,10.2508]
[1760138120837,2.61115286,3829.8,3827.1,10.2508]
[1760138121067,0.005,3832.9,3827.1,10.2508]
[1760138121068,2.60920431,3832.6,3827.1,10.2508]